bitfinex/quotes_ETHUSD_20241022
["timestamp","ask_amount","ask_price","bid_price","bid_amount"]
[1729640751282,5.10222551,2623.9,2623.5,3.43052]
[1729640752026,3.43008,2623.9,2623.5,3.43052]
[1729640753726,5.10222551,2623.9,2623.5,3.43052]
[1729640757835,5.10222551,2623.9,2623.4,0.8182]
[1729640758037,5.10222551,2623.9,2623.4,4.24885]
[1729640758435,5.10258551,2623.6,2623.2,1.62929344]
[1729640758971,5.10258551,2623.6,2623.2,0.8315]
[1729640759258,3.43056,2623.5,2623.2,0.8315]
[1729640759411,5.10270551,2623.5,2623.2,0.8315]
[1729640760259,3.43056,2623.5,2623.2,0.8315]
[1729640760491,5.10270551,2623.5,2623.2,0.8315]
[1729640761059,1.67214551,2623.5,2623.2,0.8315]
[1729640761263,3.43066,2623.4,2623.2,0.8315]
[1729640762350,3.43066,2623.4,2622.9,4.22901344]
[1729640762556,5.10299551,2623.3,2623.0,0.8315]
[1729640762753,1.67214551,2623.1,2623.0,0.8315]
[1729640763057,5.10321551,2623.1,2622.9,0.79779344]
[1729640763464,7.55088398,2623.0,2622.9,0.79779344]
[1729640763774,6.43144,2622.8,2622.7,1.19669016]
[1729640763917,6.78394398,2622.8,2622.7,1.19669016]
[1729640764116,8.45608949,2622.8,2622.7,1.19669016]
[1729640764349,7.55114398,2622.8,2622.7,1.19669016]
[1729640764547,9.22328949,2622.8,2622.7,1.19669016]
[1729640765159,7.55082437,2622.8,2622.7,1.19669016]
[1729640765354,9.22296988,2622.8,2622.7,1.19669016]
[1729640765726,7.55082437,2622.8,2622.7,1.19669016]
[1729640765930,4.55082437,2622.8,2622.7,1.19669016]
[1729640766252,5.87078551,2622.8,2622.7,1.19669016]
[1729640767249,6.86276,2622.9,2622.7,1.19669016]
[1729640767429,6.86276,2622.9,2622.3,4.18848]
[1729640767430,1.67214551,2622.8,2622.3,0.7564]
[1729640767624,1.67214551,2622.6,2622.3,1.68578755]
[1729640767853,1.67214551,2622.6,2622.3,0.7564]
[1729640768365,3.43175,2622.6,2622.3,0.7564]
[1729640768678,6.86284,2622.9,2622.3,0.7564]
[1729640768877,3.43153,2622.8,2622.3,0.7564]
[1729640769057,3.43165,2622.7,2622.3,0.7564]
[1729640769628,3.405605,2623.0,2622.3,0.7564]
[1729640769940,3.43193,2622.5,2622.1,0.7572]
[1729640770363,3.43211,2622.3,2622.1,0.7572]
[1729640774749,0.7872,2621.8,2621.7,9.07e-06]
[1729640774957,3.434,2620.9,2620.2,3.43476]
[1729640775161,3.43396,2620.9,2620.3,0.419116]
[1729640775356,6.86802,2620.9,2620.3,3.43464]
[1729640775599,3.4341,2620.8,2620.3,3.43464]
[1729640776498,3.4341,2620.8,2620.1,4.19127]
[1729640776696,3.4341,2620.8,2620.3,3.43465]
[1729640777065,3.4341,2620.8,2620.3,3.43464]
[1729640777397,3.7672,2621.0,2620.1,0.7564]
[1729640777608,3.43433,2620.6,2620.1,0.7564]
[1729640778367,6.86826,2620.8,2620.1,0.7564]
[1729640778573,3.43422,2620.7,2620.1,0.7564]
[1729640779174,3.4341,2620.8,2620.1,0.7564]
[1729640779376,3.4341,2620.8,2620.1,4.19126]
[1729640779572,3.4342,2620.7,2620.1,4.19126]
[1729640779973,0.7672,2621.0,2620.4,3.43457]
[1729640780206,3.43362,2621.2,2620.6,3.43431]
[1729640780582,3.43362,2621.2,2620.7,0.7657]
[1729640781618,6.43351,2621.3,2620.7,0.7657]
[1729640781908,6.43351,2621.3,2620.7,4.19988]
[1729640782106,9.86702,2621.3,2620.7,4.19988]
[1729640782297,9.86702,2621.3,2620.7,0.7657]
[1729640782498,3.43354,2621.2,2620.7,4.19988]
[1729640782699,3.43354,2621.2,2620.7,0.7657]
[1729640784380,6.43351,2621.3,2620.7,4.19987]
[1729640784605,9.86704,2621.3,2620.7,4.19987]
[1729640784802,6.43351,2621.3,2620.7,4.19987]
[1729640785205,9.86701,2621.3,2620.7,4.19987]
[1729640785525,6.4335,2621.3,2620.7,4.19987]
[1729640785726,6.43337,2621.4,2620.8,3.43395]
[1729640786028,3.43341,2621.3,2620.7,4.19987]
[1729640786508,3.43341,2621.3,2620.7,4.19981]
[1729640786913,3.43341,2621.3,2620.8,3.43404]
[1729640787319,3.43341,2621.3,2620.7,4.19981]
[1729640787920,6.86692,2621.3,2620.7,4.19981]
[1729640788211,3.43357,2621.2,2620.7,4.19981]
[1729640788986,3.4337,2621.1,2620.6,3.4343]
[1729640789185,3.43341,2621.3,2620.6,3.4343]
[1729640789514,3.43354,2621.2,2620.6,3.4343]
[1729640790932,6.86719,2621.2,2620.6,3.4343]
[1729640791242,3.43354,2621.2,2620.6,3.4343]
[1729640791594,6.86717,2621.2,2620.6,3.4343]
[1729640792033,3.43354,2621.2,2620.7,3.43417]
[1729640792242,3.43354,2621.2,2620.6,3.4343]
[1729640792243,6.86717,2621.2,2620.6,3.4343]
[1729640794032,3.43354,2621.2,2620.6,3.4343]
[1729640794341,3.43354,2621.2,2620.7,3.43413]
[1729640794522,6.86721,2621.2,2620.6,3.4343]
[1729640795417,6.86721,2621.2,2620.6,3.43425]
[1729640795816,3.43354,2621.2,2620.6,3.43425]
[1729640796015,6.86721,2621.2,2620.6,3.43425]
[1729640796340,3.43354,2621.2,2620.6,6.86849]
[1729640796631,6.86717,2621.2,2620.6,3.43424]
[1729640797149,3.43354,2621.2,2620.7,3.43414]
[1729640797327,3.43354,2621.2,2620.8,0.8264]
[1729640798257,3.43369,2621.1,2620.8,0.8264]
[1729640799250,3.43354,2621.2,2620.8,0.8264]
[1729640799251,3.43354,2621.2,2620.8,4.26045]
[1729640799618,3.43354,2621.2,2620.8,0.8264]
[1729640800720,6.86719,2621.2,2620.8,0.8264]
[1729640801255,3.43354,2621.2,2620.8,0.8264]
[1729640802665,6.86716,2621.2,2620.8,0.8264]
[1729640803033,3.43354,2621.2,2620.8,0.8264]
[1729640804270,6.86719,2621.2,2620.8,0.8264]
[1729640804485,6.8672,2621.2,2620.8,0.8264]
[1729640804636,3.43354,2621.2,2620.8,0.8264]
[1729640805191,9.86668,2621.4,2620.8,4.26038]
[1729640805392,8.11172495,2621.4,2620.8,4.26038]
[1729640805691,3.43341,2621.3,2620.8,0.8264]
[1729640805896,3.43357,2621.2,2620.8,0.8264]
[1729640808347,3.43341,2621.3,2620.8,0.8264]
[1729640808348,6.86693,2621.3,2620.8,4.26046]
[1729640808981,3.43357,2621.2,2620.8,0.8264]
[1729640811401,3.43357,2621.2,2620.8,4.26041]
[1729640811753,3.43357,2621.2,2620.8,0.8264]
[1729640811968,6.86721,2621.2,2620.8,0.8264]
[1729640812177,3.43357,2621.2,2620.8,0.8264]
[1729640812403,6.86718,2621.2,2620.8,0.8264]
[1729640812622,3.43357,2621.2,2620.8,0.8264]
[1729640813480,6.86719,2621.2,2620.8,0.8264]
[1729640813868,3.43357,2621.2,2620.8,0.8264]
[1729640814054,3.43357,2621.2,2620.8,4.26046]
[1729640814258,3.43357,2621.2,2620.8,0.8264]
[1729640817057,6.8672,2621.2,2620.8,0.8264]
[1729640817372,3.43357,2621.2,2620.8,0.8264]
[1729640818110,6.86718,2621.2,2620.8,0.8264]
[1729640819208,3.43357,2621.2,2620.8,0.8264]
[1729640820309,0.35294339,2621.1,2620.8,0.8264]
[1729640820510,6.8672,2621.2,2620.8,0.8264]
[1729640820680,0.35294329,2621.1,2620.8,0.8264]
[1729640820884,0.35294329,2621.0,2620.8,0.8264]
[1729640821077,0.35294329,2620.9,2620.8,0.8264]
[1729640821983,3.43419,2620.7,2620.6,0.79541266]
[1729640822158,3.43419,2620.7,2620.3,0.7766]
[1729640822159,5.46555824,2620.7,2620.3,0.7766]
[1729640822367,1.67842495,2620.5,2620.3,0.7766]
[1729640822564,0.35281793,2620.4,2620.1,4.23032266]
[1729640822911,0.763,2620.5,2620.1,4.23032266]
[1729640823065,0.35279366,2620.4,2620.1,3.43491]
[1729640823264,1.67842495,2620.4,2620.0,100.80113975]
[1729640823571,0.35270438,2620.3,2620.0,100.80113975]
[1729640823887,3.43465,2620.4,2620.0,100.80113975]
[1729640824209,0.35268905,2620.3,2620.0,100.00572709]
[1729640824368,3.43465,2620.4,2620.0,100.00572709]
[1729640827639,4.19746,2620.5,2620.0,103.44071709]
[1729640827796,3.43446,2620.5,2620.0,103.44071709]
[1729640828189,3.43446,2620.5,2620.1,3.43496]
[1729640828492,3.43446,2620.5,2620.1,3.43497]
[1729640828733,0.35229921,2620.4,2620.0,103.44083709]
[1729640828955,4.22348,2620.7,2620.0,100.00572709]
[1729640828956,6.7918299,2620.1,2620.0,100.00572709]
[1729640829253,7.57642994,2620.1,2620.0,100.00572709]
[1729640829391,9.25485489,2620.1,2620.0,100.00572709]
[1729640830012,8.90260495,2620.1,2620.0,100.00572709]
[1729640830202,9.25451732,2620.1,2620.0,100.00572709]
[1729640831012,4.14111237,2620.1,2620.0,100.00572709]
[1729640831367,5.90260495,2620.1,2620.0,100.00572709]
[1729640834952,10.5910299,2620.1,2620.0,100.00572709]
[1729640835149,10.95212391,2620.1,2620.0,100.00572709]
[1729640835994,10.94212391,2620.1,2620.0,99.95572709]
[1729640836434,10.95212391,2620.1,2620.0,99.95572709]
[1729640837106,10.6010299,2620.1,2620.0,99.95572709]
[1729640837314,10.95173693,2620.1,2620.0,99.95572709]
[1729640838312,10.6010299,2620.1,2620.0,99.95572709]
[1729640838512,10.5910299,2620.1,2620.0,99.95572709]
[1729640838711,10.6010299,2620.1,2620.0,99.95572709]
[1729640838909,10.5910299,2620.1,2620.0,99.95572709]
[1729640839143,10.6010299,2620.1,2620.0,99.95572709]
[1729640840427,8.92260495,2620.1,2620.0,99.95572709]
[1729640840754,10.5910299,2620.1,2620.0,99.95572709]
[1729640841245,7.22418,2620.1,2620.0,99.95572709]
[1729640841597,8.90260495,2620.1,2620.0,99.95572709]
[1729640843535,10.5910299,2620.1,2620.0,99.95572709]
[1729640845346,11.1510299,2620.1,2620.0,99.95572709]
[1729640845534,11.5011215,2620.1,2620.0,99.95572709]
[1729640846297,11.5011215,2620.1,2620.0,82.95510758]
[1729640846516,10.7119215,2620.1,2620.0,66.80000554]
[1729640846766,10.7119215,2620.1,2620.0,64.58455711]
[1729640846914,17.0239215,2620.1,2620.0,63.83755711]
[1729640847429,17.0239215,2620.1,2620.0,62.30325268]
[1729640847760,17.0239215,2620.1,2620.0,54.66965268]
[1729640847960,17.02359813,2620.1,2620.0,54.66965268]
[1729640848317,20.49775253,2620.1,2620.0,54.66965268]
[1729640848519,20.67378446,2620.1,2620.0,50.85285268]
[1729640848821,20.67378446,2620.1,2620.0,45.12765268]
[1729640849137,20.67378446,2620.1,2620.0,37.47977153]
[1729640849847,20.67378446,2620.1,2620.0,29.84617153]
[1729640850416,10.77025038,2620.1,2620.0,29.84617153]
[1729640850965,7.22025038,2620.1,2620.0,29.84617153]
[1729640851118,6.87048215,2620.1,2620.0,29.84617153]
[1729640851763,7.35298083,2620.1,2620.0,29.84617153]
[1729640852965,10.35298083,2620.1,2620.0,29.84617153]
[1729640853720,9.87048215,2620.1,2620.0,29.84617153]
[1729640864330,10.22093897,2620.1,2620.0,29.84617153]
[1729640868275,10.16676584,2620.1,2620.0,29.84617153]
[1729640868647,12.45876584,2620.1,2620.0,29.84617153]
[1729640868848,10.16676584,2620.1,2620.0,29.84617153]
[1729640869689,10.7645024,2620.1,2620.0,29.84617153]
[1729640870894,9.08383789,2620.1,2620.0,29.84617153]
[1729640871088,10.7645024,2620.1,2620.0,29.84617153]
[1729640873312,10.41404558,2620.1,2620.0,29.84617153]
[1729640873477,10.7655283,2620.1,2620.0,29.84617153]
[1729640876921,10.7657591,2620.1,2620.0,29.84617153]
[1729640880579,10.7657591,2620.1,2620.0,30.67227153]
[1729640880580,2.27840107,2620.1,2620.0,30.67227153]
[1729640880778,2.63046458,2620.1,2620.0,30.67227153]
[1729640881879,5.63046458,2620.1,2620.0,30.67227153]
[1729640882422,3.94980007,2620.1,2620.0,30.67227153]
[1729640882591,5.63046458,2620.1,2620.0,30.67227153]
[1729640883388,5.63037733,2620.1,2620.0,30.67227153]
[1729640883597,5.27840107,2620.1,2620.0,30.67227153]
[1729640883791,5.63036601,2620.1,2620.0,30.67227153]
[1729640888410,0.9497015,2620.1,2620.0,33.73949868]
[1729640888920,0.59773656,2620.1,2620.0,33.73949868]
[1729640889281,0.59773656,2620.1,2620.0,30.67227153]
[1729640889526,2.27840107,2620.1,2620.0,30.67227153]
[1729640889934,0.59773656,2620.1,2620.0,30.67227153]
[1729640891590,0.59773656,2620.1,2620.0,35.78804604]
[1729640891899,0.59773656,2620.1,2620.0,34.10738153]
[1729640892099,0.59773656,2620.1,2620.0,35.23413961]
[1729640892830,0.59773656,2620.1,2620.0,36.91480412]
[1729640893025,0.59773656,2620.1,2620.0,35.23413961]
[1729640895139,0.59773656,2620.1,2620.0,36.91480412]
[1729640896524,0.59773656,2620.1,2620.0,35.23413961]
[1729640897165,0.59773656,2620.1,2620.0,36.91480412]
[1729640897461,0.59773656,2620.1,2620.0,35.23413961]
[1729640897668,0.59773656,2620.1,2620.0,36.91480412]
[1729640897883,5.11472451,2620.8,2620.3,0.7786]
[1729640898167,1.68066451,2620.7,2620.4,0.7786]
[1729640901296,6.4339,2621.0,2620.5,0.7786]
[1729640901460,1.68066451,2620.8,2620.5,0.7786]
[1729640902788,4.68066451,2620.8,2620.5,0.7786]
[1729640902982,1.68066451,2620.7,2620.5,0.7786]
[1729640903183,1.68066451,2620.6,2620.5,0.7786]
[1729640905459,5.11498451,2620.6,2620.5,0.7786]
[1729640905663,5.11498451,2620.6,2620.1,0.7786]
[1729640905855,5.11498451,2620.6,2620.1,4.18457615]
[1729640906379,1.68066451,2620.4,2620.1,0.7786]
[1729640906534,5.11531451,2620.4,2620.1,0.7786]
[1729640906933,1.68066451,2620.3,2620.1,0.7786]
[1729640907157,5.11531451,2620.4,2620.1,0.7786]
[1729640907371,1.68066451,2620.4,2620.1,0.7786]
[1729640907581,5.11533451,2620.4,2620.1,0.7786]
[1729640907968,3.43467,2620.4,2620.1,0.7786]
[1729640908932,5.11533451,2620.4,2620.1,0.7786]
[1729640910389,3.43467,2620.4,2620.1,0.7786]
[1729640911669,3.43445,2620.5,2620.1,0.7786]
[1729640911868,5.11511451,2620.5,2620.1,0.7786]
[1729640912285,3.43437,2620.6,2620.1,0.7786]
[1729640912451,3.43455,2620.5,2620.1,0.7786]
[1729640913278,5.11521451,2620.5,2620.1,0.7786]
[1729640913597,3.43461,2620.4,2620.1,0.7786]
[1729640914696,5.11521451,2620.5,2620.1,0.7786]
[1729640915306,3.43455,2620.5,2620.1,0.7786]
[1729640916501,5.11521451,2620.5,2620.1,0.7786]
[1729640917091,8.54979451,2620.5,2620.1,0.7786]
[1729640917293,5.11521451,2620.5,2620.1,0.7786]
[1729640917601,8.54975451,2620.5,2620.1,0.7786]
[1729640917896,3.43454,2620.5,2620.1,0.7786]
[1729640918103,5.11520451,2620.5,2620.1,0.7786]
[1729640918583,3.43454,2620.5,2620.1,0.7786]
[1729640918989,5.11520451,2620.5,2620.1,0.7786]
[1729640919497,3.43454,2620.5,2620.1,0.7786]
[1729640921097,5.11520451,2620.5,2620.1,0.7786]
[1729640921273,0.35191054,2620.4,2620.1,0.7786]
[1729640921652,8.54973451,2620.5,2620.1,0.7786]
[1729640921806,0.35192617,2620.4,2620.1,0.7786]
[1729640921961,5.11519451,2620.5,2620.1,0.7786]
[1729640922296,0.35192515,2620.4,2620.1,0.7786]
[1729640922496,5.11519451,2620.5,2620.1,0.7786]
[1729640922697,3.78668692,2620.4,2620.1,0.7786]
[1729640922900,3.43467,2620.4,2620.1,0.7786]
[1729640923488,3.4346,2620.4,2620.1,0.7786]
[1729640924422,0.35224407,2620.3,2620.1,0.7786]
[1729640924564,5.11519451,2620.5,2620.1,0.7786]
[1729640924763,0.35224408,2620.4,2620.1,0.7786]
[1729640924978,0.35224408,2620.3,2620.1,0.7786]
[1729640925313,0.3523847,2620.2,2620.1,0.7786]
[1729640929204,0.35247844,2620.2,2620.1,0.7786]
[1729640930927,5.11515451,2620.5,2620.1,0.7786]
[1729640931129,0.35256985,2620.4,2620.1,0.7786]
[1729640931276,0.35256985,2620.3,2620.1,0.7786]
[1729640931480,0.35256985,2620.2,2620.1,0.7786]
[1729640931677,0.35256985,2620.4,2620.1,0.7786]
[1729640931880,0.35256985,2620.3,2620.1,4.21355]
[1729640932121,0.35256985,2620.2,2620.1,4.89931095]
[1729640932608,0.35268228,2620.5,2620.2,3.43483]
[1729640932796,0.35268349,2620.4,2620.3,0.7958]
[1729640933022,0.35268349,2620.4,2620.3,5.91118451]
[1729640933620,6.43381,2621.0,2620.5,3.4344]
[1729640933825,0.3527863,2620.9,2620.6,5.11489451]
[1729640934137,0.3527863,2620.8,2620.7,0.7958]
[1729640937115,0.3527863,2620.8,2620.7,4.22999]
[1729640937315,0.3527863,2620.8,2620.7,0.7958]
[1729640938447,0.35271762,2620.8,2620.7,0.7958]
[1729640938799,0.35271762,2620.8,2620.7,4.22999]
[1729640939754,0.35271762,2620.8,2620.7,0.7958]
[1729640939908,0.35271762,2620.8,2620.7,4.22999]
[1729640941149,3.0,2621.2,2620.8,3.43403]
[1729640941349,0.35263536,2621.1,2620.8,3.43403]
[1729640941553,0.35263536,2621.0,2620.7,4.22999]
[1729640941877,1.68066451,2620.8,2620.4,0.7958]
[1729640942174,5.11519451,2620.5,2620.1,0.7958]
[1729640942391,0.35263536,2620.4,2620.1,0.7958]
[1729640942679,5.11519451,2620.5,2620.1,0.7958]
[1729640942680,0.35263536,2620.3,2620.1,0.7958]
[1729640942844,3.43453,2620.5,2620.1,0.7958]
[1729640943045,0.35249011,2620.4,2620.1,0.7958]
[1729640943378,0.35249011,2620.3,2620.1,0.7958]
[1729640943561,3.43485,2620.2,2620.0,30.63577153]
[1729640943872,3.43485,2620.2,2620.0,29.84617153]
[1729640944033,0.35245537,2620.1,2620.0,29.84617153]
[1729640947755,0.35242322,2620.1,2620.0,29.84617153]
[1729640947951,1.68066451,2620.3,2620.0,29.84617153]
[1729640948167,0.3524258,2620.2,2620.0,29.84617153]
[1729640948493,0.3524258,2620.1,2620.0,29.84617153]
[1729640948788,0.3524258,2620.2,2620.0,29.84617153]
[1729640948975,8.11564451,2620.1,2620.0,29.84617153]
[1729640949166,8.46807031,2620.1,2620.0,29.84617153]
[1729640951391,8.46789721,2620.1,2620.0,29.84617153]
[1729640951760,10.75606172,2620.1,2620.0,29.84617153]
[1729640951984,9.07539721,2620.1,2620.0,29.84617153]
[1729640956984,10.75606172,2620.1,2620.0,29.84617153]
[1729640957175,9.07539721,2620.1,2620.0,29.84617153]
[1729640957390,10.75606172,2620.1,2620.0,29.84617153]
[1729640957698,9.07539721,2620.1,2620.0,29.84617153]
[1729640957850,10.75606172,2620.1,2620.0,29.84617153]
[1729640958350,9.07539721,2620.1,2620.0,29.84617153]
[1729640962195,8.72314451,2620.1,2620.0,29.84617153]
[1729640962360,9.07467061,2620.1,2620.0,29.84617153]
[1729640963398,10.75533512,2620.1,2620.0,29.84617153]
[1729640965816,8.72314451,2620.1,2620.0,29.84617153]
[1729640965988,9.07452087,2620.1,2620.0,29.84617153]
[1729640966779,10.75518538,2620.1,2620.0,29.84617153]
[1729640967619,8.47702087,2620.1,2620.0,29.84617153]
[1729640968709,8.46702087,2620.1,2620.0,29.84617153]
[1729640969795,8.11564451,2620.1,2620.0,29.84617153]
[1729640970133,8.46692474,2620.1,2620.0,29.84617153]
[1729640970838,8.11564451,2620.1,2620.0,29.84617153]
[1729640971136,8.46691896,2620.1,2620.0,29.84617153]
[1729640973442,8.46691019,2620.1,2620.0,29.84617153]
[1729640977140,8.11564451,2620.1,2620.0,29.84617153]
[1729640977513,8.46690408,2620.1,2620.0,29.84617153]
[1729640981342,8.46708944,2620.1,2620.0,29.84617153]
[1729640982269,8.11564451,2620.1,2620.0,29.84617153]
[1729640982476,8.46718784,2620.1,2620.0,29.84617153]
[1729640984831,8.11564451,2620.1,2620.0,29.84617153]
[1729640985031,8.46740912,2620.1,2620.0,29.84617153]
[1729640992151,8.11564451,2620.1,2620.0,29.84617153]
[1729640992357,8.46829235,2620.1,2620.0,29.84617153]
[1729640992666,8.46829787,2620.1,2620.0,29.84617153]
[1729640996089,8.11564451,2620.1,2620.0,29.84617153]
[1729640996241,8.46863894,2620.1,2620.0,29.84617153]
[1729641002787,8.11564451,2620.1,2620.0,29.84617153]
[1729641003176,8.4687163,2620.1,2620.0,29.84617153]
[1729641004093,10.14938081,2620.1,2620.0,29.84617153]
[1729641007575,8.4687163,2620.1,2620.0,29.84617153]
[1729641009900,8.46875691,2620.1,2620.0,29.84617153]
[1729641013675,8.11564451,2620.1,2620.0,29.84617153]
[1729641013877,8.46879546,2620.1,2620.0,29.84617153]
[1729641014191,8.46879301,2620.1,2620.0,29.84617153]
[1729641016342,6.7881285,2620.1,2620.0,29.84617153]
[1729641016507,0.3531485,2620.1,2620.0,32.56783289]
[1729641017321,1.68066451,2620.2,2620.0,32.56783289]
[1729641017655,0.35299162,2620.1,2620.0,32.56783289]
[1729641018444,1.68066451,2620.2,2620.1,0.781]
[1729641018654,1.68066451,2620.2,2620.1,4.03999329]
[1729641018953,5.11551451,2620.2,2620.1,4.03999329]
[1729641020256,25.96000671,2620.1,2620.0,31.80893289]
[1729641020555,27.64067122,2620.1,2620.0,31.80893289]
[1729641023353,27.64067122,2620.1,2620.0,32.58993289]
[1729641024557,25.96000671,2620.1,2620.0,32.58993289]
[1729641025852,25.96000671,2620.1,2620.0,37.7057074]
[1729641027744,25.95867042,2620.1,2620.0,37.7057074]
[1729641029022,25.95867042,2620.1,2620.0,37.7157074]
[1729641029543,25.95867042,2620.1,2620.0,37.7057074]
[1729641031512,25.95867042,2620.1,2620.0,39.38637191]
[1729641033372,25.95867042,2620.1,2620.0,42.39637191]
[1729641033513,25.67981751,2620.1,2620.0,42.94637191]
[1729641033712,25.67981751,2620.1,2620.0,43.74621985]
[1729641034977,25.67981751,2620.1,2620.0,42.94637191]
[1729641038277,24.90240116,2620.1,2620.0,42.94637191]
[1729641038651,24.90240116,2620.1,2620.0,43.74621985]
[1729641039171,24.90240116,2620.1,2620.0,42.94637191]
[1729641042000,24.70785115,2620.1,2620.0,42.95637191]
[1729641043573,20.25020693,2620.1,2620.0,42.95637191]
[1729641045304,14.34891702,2620.1,2620.0,42.95637191]
[1729641045475,10.42882113,2620.1,2620.0,42.95637191]
[1729641045689,8.44758241,2620.1,2620.0,42.95637191]
[1729641045865,0.7792,2621.2,2621.1,3.43367]
[1729641046205,0.7792,2621.2,2620.8,0.8058]
[1729641046508,0.7792,2621.2,2621.0,3.43378]
[1729641046713,0.7792,2621.4,2621.0,3.43378]
[1729641047085,0.7792,2621.4,2621.0,3.43371]
[1729641047293,0.7792,2621.4,2621.0,5.11437451]
[1729641047604,0.7792,2621.4,2621.0,6.86742]
[1729641047821,0.7792,2621.4,2621.3,3.43341]
[1729641048017,0.7792,2621.6,2621.2,3.43353]
[1729641048315,0.7792,2621.6,2621.2,8.54761451]
[1729641048522,0.7792,2621.6,2621.3,3.43339]
[1729641049670,0.7792,2621.6,2621.4,5.11392451]
[1729641049871,2.45126451,2621.9,2621.5,3.43314]
[1729641050691,0.7706,2621.9,2621.7,3.43285]
[1729641051169,0.7706,2621.9,2621.5,5.91528451]
[1729641051932,2.45126451,2621.9,2621.5,0.8016]
[1729641052071,1.68066451,2621.6,2621.2,3.43347]
[1729641052410,1.68066451,2621.5,2621.2,3.43347]
[1729641052625,2.26906696,2621.6,2621.2,3.43347]
[1729641053121,0.58840245,2621.6,2621.3,3.43338]
[1729641053612,2.45126451,2621.7,2621.3,3.43338]
[1729641053822,2.45126451,2621.7,2621.1,3.43358]
[1729641053823,2.45126451,2621.7,2621.2,3.43342]
[1729641054018,2.45126451,2621.7,2621.2,3.50971309]
[1729641054416,0.7706,2621.7,2621.3,3.43336]
[1729641054627,0.7706,2621.7,2621.4,3.43323]
[1729641054908,0.7706,2621.7,2621.5,3.43307]
[1729641055524,2.45126451,2621.7,2621.5,3.43307]
[1729641055677,0.7706,2621.7,2621.5,3.43307]
[1729641056413,0.7706,2621.7,2621.4,3.4332]
[1729641056771,2.45126451,2621.7,2621.3,3.43331]
[1729641057012,2.45126451,2621.7,2621.3,6.86665]
[1729641057208,2.45126451,2621.7,2621.4,3.43325]
[1729641060132,0.7706,2621.7,2621.4,3.43325]
[1729641063019,0.7706,2621.7,2621.4,6.86646]
[1729641063241,0.7706,2621.7,2621.4,3.43321]
[1729641063613,1.68066451,2621.6,2621.2,3.43345]
[1729641063819,1.68066451,2621.5,2621.2,3.43345]
[1729641064016,1.68066451,2621.6,2621.2,3.43345]
[1729641064639,2.45126451,2621.7,2621.2,3.43345]
[1729641064835,3.38296396,2621.7,2621.2,3.43345]
[1729641065159,1.68066451,2621.6,2621.2,3.43345]
[1729641066434,1.68066451,2621.6,2620.5,0.79984794]
[1729641066435,2.49896451,2621.3,2620.5,0.79984794]
[1729641066738,2.49896451,2621.3,2620.9,3.43387]
[1729641067066,2.49896451,2621.3,2620.9,6.86773]
[1729641067067,0.24989645,2621.2,2620.9,6.86773]
[1729641067472,0.24989645,2621.2,2621.0,3.43378]
[1729641067673,2.49896451,2621.3,2620.9,3.51015926]
[1729641067833,0.8183,2621.3,2620.9,3.51015926]
[1729641068581,0.8183,2621.3,2620.9,3.43385]
[1729641069626,2.49896451,2621.3,2620.9,3.43385]
[1729641070440,2.49896451,2621.3,2621.0,0.07629908]
[1729641070764,1.68066451,2621.2,2620.8,3.43405]
[1729641070929,1.68066451,2621.0,2620.7,4.23299]
[1729641071129,1.68066451,2621.0,2620.7,3.43409]
[1729641071374,1.68066451,2621.1,2620.7,3.43409]
[1729641072123,1.68066451,2620.9,2620.6,3.43432]
[1729641072327,0.8183,2620.9,2620.6,3.43432]
[1729641072905,2.49896451,2620.9,2620.6,3.43432]
[1729641073111,0.8183,2620.9,2620.6,3.43432]
[1729641073428,2.49896451,2620.9,2620.6,3.43432]
[1729641073613,1.68066451,2620.7,2620.3,4.23356]
[1729641073995,5.11472451,2620.8,2620.3,4.23356]
[1729641074203,5.11472451,2620.8,2620.3,4.23355]
[1729641074714,1.68066451,2620.7,2620.3,4.23355]
[1729641074914,5.11472451,2620.8,2620.3,3.43465]
[1729641075998,5.11472451,2620.8,2620.3,6.86928]
[1729641076416,5.11472451,2620.8,2620.3,3.43463]
[1729641076618,1.68066451,2620.7,2620.3,3.43463]
[1729641078412,1.68066451,2620.7,2620.4,3.43458]
[1729641079021,1.68066451,2620.8,2620.4,3.43458]
[1729641079224,1.68066451,2620.8,2620.5,0.07631324]
[1729641079445,1.68066451,2620.6,2620.1,4.23381]
[1729641079738,1.68066451,2620.8,2620.3,3.43463]
[1729641079897,1.68066451,2620.8,2620.3,3.51094789]
[1729641080097,1.68066451,2620.7,2620.3,3.51094789]
[1729641081732,5.11472451,2620.8,2620.3,3.51094789]
[1729641082400,5.11472451,2620.8,2620.3,0.07631789]
[1729641082601,5.11485451,2620.7,2620.2,6.86956]
[1729641082999,5.11485451,2620.7,2620.2,6.86955]
[1729641084429,1.68066451,2620.7,2620.3,0.07631779]
[1729641084597,1.68066451,2620.7,2620.3,3.51097779]
[1729641085697,1.68066451,2620.6,2620.3,3.51097779]
[1729641086127,1.68066451,2620.7,2620.3,3.51097779]
[1729641086331,1.68066451,2620.6,2620.3,3.51097779]
[1729641086709,1.68066451,2620.7,2620.3,3.51097779]
[1729641088131,1.68066451,2620.6,2620.3,3.51097779]
[1729641089099,1.68066451,2620.7,2620.3,3.51097779]
[1729641090041,1.68066451,2620.4,2620.2,4.41445816]
[1729641090196,1.68066451,2620.4,2620.2,3.43477]
[1729641090888,1.68066451,2620.4,2620.1,0.7989]
[1729641091032,1.68066451,2620.4,2620.2,3.43472]
[1729641091755,1.68066451,2620.4,2620.2,6.8695]
[1729641091946,1.68066451,2620.4,2620.2,3.43472]
[1729641092653,1.68066451,2620.4,2620.2,6.86948]
[1729641092986,1.68066451,2620.5,2620.2,10.51465834]
[1729641096175,1.68066451,2620.5,2620.2,7.07989834]
[1729641096578,1.68066451,2620.5,2620.2,10.51467834]
[1729641097339,1.68066451,2620.5,2620.3,3.43465]
[1729641099793,1.68066451,2620.7,2620.3,3.43465]
[1729641099996,0.8183,2620.9,2620.4,3.43451]
[1729641100301,4.68066451,2621.0,2620.5,1.0106106]
[1729641100504,8.11446451,2621.0,2620.6,3.43431]
[1729641100675,1.68066451,2620.9,2620.6,3.43431]
[1729641100857,4.68066451,2620.9,2620.5,1.0106106]
[1729641101058,0.9086,2621.1,2620.5,1.91170314]
[1729641101260,4.68066451,2621.1,2620.8,0.9343]
[1729641102008,1.68066451,2620.9,2620.8,0.9343]
[1729641102210,3.43426,2620.7,2620.2,4.36906]
[1729641102505,1.68066451,2620.6,2620.2,4.36906]